[Event "FRA-ch Youth U18W 2019"]
[Site "Hyeres"]
[Date "2019.04.14"]
[Round "1.1"]
[White "Rollot, Florence"]
[Black "Soreda, Elisa"]
[Result "1-0"]
[ECO "A12"]
[WhiteElo "1975"]
[BlackElo "1602"]
[Annotator "NA"]
[PlyCount "155"]
[EventDate "2019.04.14"]
[EventType "swiss"]
[EventCountry "FRA"]
[SourceTitle "playchess.com"]
[Source "ChessBase"]
[SourceQuality "1"]
[TimeControl "5400+30"]

1. c4 {[%emt 0:00:00]} c6 {[%emt 0:00:03]} 2. Nf3 {[%emt 0:00:07]} Nf6 {[%emt 0:00:57]} 3. b3 {[%emt 0:01:39]} d5 {[%emt 0:01:25]} 4. Bb2 {[%emt 0:00:14]} Bf5 {[%emt 0:03:13]} 5. d3 {[%emt 0:01:20]} Nbd7 {[%emt 0:01:40]} 6. Nbd2 {[%emt 0:01:39]} e6 {[%emt 0:04:19]} 7. g3 {[%emt 0:00:54]} Bc5 {[%emt 0:03:36]} 8. Bg2 {[%emt 0:05:41]} O-O {[%emt 0:06:51]} 9. O-O {[%emt 0:13:27]} Re8 {[%emt 0:03:25]} 10. Re1 {[%emt 0:07:22]} Bg6 {[%emt 0:10:03]} 11. d4 {[%emt 0:11:12]} Be7 {[%emt 0:02:54]} 12. Ne5 {[%emt 0:09:26]} Nxe5 {[%emt 0:08:40]} 13. dxe5 {[%emt 0:00:38]} Nd7 {[%emt 0:02:04]} 14. Rc1 {[%emt 0:06:30]} f6 {[%emt 0:20:33]} 15. exf6 {[%emt 0:12:19]} Bxf6 {[%emt 0:00:23]} 16. Bxf6 {[%emt 0:01:23]} Nxf6 {[%emt 0:02:30]} 17. e4 {[%emt 0:01:50]} dxe4 {[%emt 0:06:50]} 18. Nxe4 {[%emt 0:00:45]} Nxe4 {[%emt 0:00:20]} 19. Bxe4 {[%emt 0:00:29]} Bxe4 {[%emt 0:00:12]} 20. Rxe4 {[%emt 0:00:06]} Qxd1+ {[%emt 0:01:13]} 21. Rxd1 {[%emt 0:00:02]} Re7 {[%emt 0:00:12]} 22. Rd6 {[%emt 0:01:35]} e5 {[%emt 0:02:22]} 23. f4 {[%emt 0:02:20]} Rae8 {[%emt 0:00:15]} 24. fxe5 {[%emt 0:00:16]} Kf7 {[%emt 0:03:26]} 25. Rf4+ {[%emt 0:00:03]} Kg8 {[%emt 0:00:14]} 26. Re4 {[%emt 0:06:20]} Kf7 {[%emt 0:00:06]} 27. Rf4+ {[%emt 0:04:42]} Kg8 {[%emt 0:00:13]} 28. Rf5 {[%emt 0:00:50]} g6 {[%emt 0:02:03]} 29. Rg5 {[%emt 0:00:57]} Kf7 {[%emt 0:00:08]} 30. Kf2 {[%emt 0:01:09]} Rxe5 {[%emt 0:01:01]} 31. Rd7+ {[%emt 0:00:23]} R5e7 {[%emt 0:01:29]} 32. Rxe7+ {[%emt 0:03:53]} Rxe7 {[%emt 0:00:31]} 33. Rg4 {[%emt 0:01:46]} Re5 {[%emt 0:02:36]} 34. Rh4 {[%emt 0:01:07]} Kg7 {[%emt 0:00:53]} 35. Rd4 {[%emt 0:01:44]} Re7 {[%emt 0:02:23]} 36. c5 {[%emt 0:00:55]} Kf6 {[%emt 0:00:45]} 37. b4 {[%emt 0:01:22]} b6 {[%emt 0:02:48]} 38. Kf3 {[%emt 0:00:54]} Rc7 {[%emt 0:04:27]} 39. a4 {[%emt 0:00:31]} Ke6 {[%emt 0:00:08]} 40. Rd6+ {[%emt 0:00:22]} Ke7 {[%emt 0:00:10]} 41. Ke4 {[%emt 0:00:31]} b5 {[%emt 0:00:46]} 42. axb5 {[%emt 0:00:41]} cxb5 {[%emt 0:00:21]} 43. Ra6 {[%emt 0:00:11]} Kd7 {[%emt 0:00:52]} 44. Kd5 {[%emt 0:00:06]} Kc8 {[%emt 0:00:39]} 45. c6 {[%emt 0:00:28]} Rf7 {[%emt 0:00:12]} 46. g4 {[%emt 0:00:58]} h5 {[%emt 0:00:16]} 47. gxh5 {[%emt 0:00:48]} gxh5 {[%emt 0:00:17]} 48. Kc5 {[%emt 0:00:39]} Rf5+ {[%emt 0:01:24]} 49. Kd6 {[%emt 0:00:03]} Kb8 {[%emt 0:01:18]} 50. Ra2 {[%emt 0:00:25]} Rf6+ {[%emt 0:00:18]} 51. Kd5 {[%emt 0:00:57]} Rf5+ {[%emt 0:00:30]} 52. Ke6 {[%emt 0:00:33]} Rf4 {[%emt 0:00:40]} 53. Kd5 {[%emt 0:00:59]} Rxb4 {[%emt 0:00:33]} 54. Rg2 {[%emt 0:00:30]} Rg4 {[%emt 0:00:15]} 55. Rf2 {[%emt 0:00:22]} Rg5+ {[%emt 0:00:11]} 56. Kd6 {[%emt 0:00:23]} Rg6+ {[%emt 0:00:05]} 57. Kc5 {[%emt 0:00:35]} Rg5+ {[%emt 0:00:16]} 58. Kd6 {[%emt 0:00:40]} Rg6+ {[%emt 0:00:27]} 59. Kd7 {[%emt 0:00:41]} Rg7+ {[%emt 0:00:20]} 60. Kd8 {[%emt 0:00:35]} Rc7 {[%emt 0:02:04]} 61. Rf5 {[%emt 0:00:10]} Rxc6 {[%emt 0:00:21]} 62. Rxb5+ {[%emt 0:00:11]} Rb6 {[%emt 0:00:20]} 63. Rxh5 {[%emt 0:00:10]} Rb1 {[%emt 0:00:20]} 64. h4 {[%emt 0:01:05]} Rd1+ {[%emt 0:00:09]} 65. Ke7 {[%emt 0:00:08]} Re1+ {[%emt 0:00:11]} 66. Kd6 {[%emt 0:00:16]} Rd1+ {[%emt 0:00:19]} 67. Rd5 {[%emt 0:00:24]} Rh1 {[%emt 0:00:25]} 68. h5 {[%emt 0:00:04]} Kc8 {[%emt 0:00:16]} 69. Ke6 {[%emt 0:01:27]} Rh2 {[%emt 0:00:37]} 70. Kf6 {[%emt 0:00:16]} Kc7 {[%emt 0:00:27]} 71. Kg6 {[%emt 0:00:29]} Kc6 {[%emt 0:00:17]} 72. Rg5 {[%emt 0:00:13]} Kb6 {[%emt 0:00:19]} 73. h6 {[%emt 0:00:19]} a5 {[%emt 0:00:03]} 74. h7 {[%emt 0:00:19]} a4 {[%emt 0:00:15]} 75. Rh5 {[%emt 0:00:08]} Rc2 {[%emt 0:00:54]} 76. h8=Q {[%emt 0:00:14]} Rc6+ {[%emt 0:00:13]} 77. Kf5 {[%emt 0:00:13]} Rc5+ {[%emt 0:00:16]} 78. Ke4 {[%emt 0:00:08]} 1-0

[Event "FRA-ch Youth U18W 2019"]
[Site "Hyeres"]
[Date "2019.04.14"]
[Round "1.2"]
[White "Coussy, Tyffanie"]
[Black "Lomandong, Noela-Joyce"]
[Result "0-1"]
[ECO "E13"]
[WhiteElo "1582"]
[BlackElo "1942"]
[Annotator "NA"]
[PlyCount "92"]
[EventDate "2019.04.14"]
[EventType "swiss"]
[EventCountry "FRA"]
[SourceTitle "playchess.com"]
[Source "ChessBase"]
[SourceQuality "1"]
[TimeControl "5400+30"]

1. d4 {[%emt 0:00:00]} e6 {[%emt 0:03:14]} 2. c4 {[%emt 0:00:00]} Nf6 {[%emt 0:00:37]} 3. Nc3 {[%emt 0:00:00]} b6 {[%emt 0:00:22]} 4. Bg5 {[%emt 0:01:07]} h6 {[%emt 0:00:26]} 5. Bh4 {[%emt 0:00:02]} Bb7 {[%emt 0:00:44]} 6. e3 {[%emt 0:00:35]} Bb4 {[%emt 0:03:32]} 7. Nf3 {[%emt 0:02:44]} g5 {[%emt 0:05:58]} 8. Bg3 {[%emt 0:00:14]} Ne4 {[%emt 0:00:10]} 9. Qc2 {[%emt 0:03:58]} h5 {[%emt 0:03:26]} 10. h3 {[%emt 0:05:25]} Nxg3 {[%emt 0:10:49]} 11. fxg3 {[%emt 0:00:08]} Qf6 {[%emt 0:00:27]} 12. Be2 {[%emt 0:08:41]} g4 {[%emt 0:06:35]} 13. hxg4 {[%emt 0:05:32]} hxg4 {[%emt 0:00:44]} 14. Rxh8+ {[%emt 0:00:21]} Qxh8 {[%emt 0:00:02]} 15. Nh4 {[%emt 0:01:33]} Bd6 {[%emt 0:03:51]} 16. Ne4 {[%emt 0:08:49]} Bxg3+ {[%emt 0:01:37]} 17. Nxg3 {[%emt 0:00:29]} Qxh4 {[%emt 0:00:08]} 18. Kf2 {[%emt 0:00:35]} Qh2 {[%emt 0:07:27]} 19. Rg1 {[%emt 0:02:39]} Na6 {[%emt 0:10:27]} 20. Bxg4 {[%emt 0:03:00]} O-O-O {[%emt 0:01:20]} 21. Bh3 {[%emt 0:03:34]} Rg8 {[%emt 0:00:31]} 22. Nf1 {[%emt 0:00:51]} Qd6 {[%emt 0:00:32]} 23. Qh7 {[%emt 0:02:03]} Qf8 {[%emt 0:00:48]} 24. a3 {[%emt 0:03:45]} f5 {[%emt 0:02:40]} 25. Nd2 {[%emt 0:01:41]} c5 {[%emt 0:05:06]} 26. Nf3 {[%emt 0:02:10]} Be4 {[%emt 0:06:34]} 27. Ne5 {[%emt 0:03:33]} Rg7 {[%emt 0:00:25]} 28. Qh4 {[%emt 0:02:33]} Kb7 {[%emt 0:05:22]} 29. Ke2 {[%emt 0:02:01]} Qg8 {[%emt 0:02:46]} 30. g4 {[%emt 0:03:16]} cxd4 {[%emt 0:02:38]} 31. exd4 {[%emt 0:00:19]} d6 {[%emt 0:01:35]} 32. Nd3 {[%emt 0:01:44]} e5 {[%emt 0:02:10]} 33. b3 {[%emt 0:04:19]} Rh7 {[%emt 0:02:55]} 34. Qg3 {[%emt 0:01:31]} f4 {[%emt 0:00:10]} 35. Nxf4 {[%emt 0:01:24]} exf4 {[%emt 0:00:33]} 36. Qxf4 {[%emt 0:00:07]} Qe8 {[%emt 0:01:07]} 37. Kd2 {[%emt 0:01:49]} Rxh3 {[%emt 0:00:56]} 38. Re1 {[%emt 0:00:22]} Rd3+ {[%emt 0:00:21]} 39. Kc1 {[%emt 0:00:13]} Rxd4 {[%emt 0:00:46]} 40. Qe3 {[%emt 0:01:20]} Qe5 {[%emt 0:00:28]} 41. Qf2 {[%emt 0:01:49]} Nc5 {[%emt 0:01:11]} 42. Qf7+ {[%emt 0:02:46]} Ka6 {[%emt 0:00:29]} 43. Re3 {[%emt 0:00:55]} Nd3+ {[%emt 0:00:48]} 44. Kd2 {[%emt 0:00:48]} Nb2+ {[%emt 0:00:18]} 45. Ke1 {[%emt 0:00:44]} Rd1+ {[%emt 0:00:45]} 46. Kf2 {[%emt 0:00:09]} Qh2# {[%emt 0:00:09]} 0-1

[Event "FRA-ch Youth U18W 2019"]
[Site "Hyeres"]
[Date "2019.04.14"]
[Round "1.3"]
[White "Bellahcene, Meriem"]
[Black "Simon, Fleur"]
[Result "1-0"]
[ECO "B91"]
[WhiteElo "1883"]
[BlackElo "1572"]
[Annotator "NA"]
[PlyCount "43"]
[EventDate "2019.04.14"]
[EventType "swiss"]
[EventCountry "FRA"]
[SourceTitle "playchess.com"]
[Source "ChessBase"]
[SourceQuality "1"]
[TimeControl "5400+30"]

1. e4 {[%emt 0:00:00]} c5 {[%emt 0:00:00]} 2. Nf3 {[%emt 0:00:00]} Nc6 {[%emt 0:00:00]} 3. Nc3 {[%emt 0:00:12]} d6 {[%emt 0:00:46]} 4. d4 {[%emt 0:00:48]} cxd4 {[%emt 0:00:07]} 5. Nxd4 {[%emt 0:00:02]} Nf6 {[%emt 0:00:37]} 6. g3 {[%emt 0:00:28]} e5 {[%emt 0:00:27]} 7. Nde2 {[%emt 0:02:35]} Be7 {[%emt 0:01:10]} 8. Bg2 {[%emt 0:00:05]} O-O {[%emt 0:00:59]} 9. O-O {[%emt 0:00:07]} a6 {[%emt 0:01:52]} 10. a4 {[%emt 0:03:17]} Bg4 {[%emt 0:07:45]} 11. h3 {[%emt 0:01:22]} Bh5 {[%emt 0:00:39]} 12. Be3 {[%emt 0:04:07]} Qd7 {[%emt 0:05:30]} 13. Qd2 {[%emt 0:09:11]} Rac8 {[%emt 0:08:42]} 14. g4 {[%emt 0:05:46]} Bg6 {[%emt 0:00:36]} 15. Ng3 {[%emt 0:00:23]} Bd8 {[%emt 0:05:36]} 16. Rfd1 {[%emt 0:04:20]} Bc7 {[%emt 0:01:16]} 17. Nf5 {[%emt 0:01:55]} Rfd8 {[%emt 0:04:28]} 18. Bg5 {[%emt 0:01:45]} Qe6 {[%emt 0:07:47]} 19. Nd5 {[%emt 0:01:24]} Rd7 {[%emt 0:05:56]} 20. Nxg7 {[%emt 0:11:07]} Kxg7 {[%emt 0:01:49]} 21. Bxf6+ {[%emt 0:01:14]} Kg8 {[%emt 0:00:24]} 22. Qh6 {[%emt 0:00:12]} 1-0

[Event "FRA-ch Youth U18W 2019"]
[Site "Hyeres"]
[Date "2019.04.14"]
[Round "1.4"]
[White "Perrin, Sophie"]
[Black "Belluire, Beatrice"]
[Result "0-1"]
[ECO "B01"]
[WhiteElo "1538"]
[BlackElo "1870"]
[Annotator "NA"]
[PlyCount "128"]
[EventDate "2019.04.14"]
[EventType "swiss"]
[EventCountry "FRA"]
[SourceTitle "playchess.com"]
[Source "ChessBase"]
[SourceQuality "1"]
[TimeControl "5400+30"]

1. e4 {[%emt 0:00:00]} d5 {[%emt 0:00:51]} 2. exd5 {[%emt 0:00:00]} Nf6 {[%emt 0:00:00]} 3. d4 {[%emt 0:00:30]} Nxd5 {[%emt 0:00:02]} 4. Nf3 {[%emt 0:03:24]} Bg4 {[%emt 0:00:17]} 5. Be2 {[%emt 0:01:05]} e6 {[%emt 0:00:11]} 6. O-O {[%emt 0:05:26]} Nc6 {[%emt 0:03:26]} 7. b3 {[%emt 0:11:25]} Be7 {[%emt 0:07:34]} 8. c4 {[%emt 0:03:05]} Nb6 {[%emt 0:00:49]} 9. Ne5 {[%emt 0:10:26]} Bxe2 {[%emt 0:03:35]} 10. Nxc6 {[%emt 0:01:50]} Bxd1 {[%emt 0:00:30]} 11. Nxd8 {[%emt 0:00:09]} Rxd8 {[%emt 0:02:35]} 12. Rxd1 {[%emt 0:00:11]} Bf6 {[%emt 0:03:21]} 13. Bb2 {[%emt 0:12:15]} c5 {[%emt 0:00:08]} 14. Na3 {[%emt 0:02:59]} cxd4 {[%emt 0:19:55]} 15. Nc2 {[%emt 0:09:52]} e5 {[%emt 0:08:10]} 16. f4 {[%emt 0:08:04]} d3 {[%emt 0:02:01]} 17. fxe5 {[%emt 0:03:44]} dxc2 {[%emt 0:00:37]} 18. Rxd8+ {[%emt 0:01:33]} Bxd8 {[%emt 0:00:05]} 19. Rc1 {[%emt 0:00:12]} O-O {[%emt 0:01:39]} 20. Rxc2 {[%emt 0:00:05]} Bg5 {[%emt 0:00:49]} 21. Kf2 {[%emt 0:07:19]} Re8 {[%emt 0:01:59]} 22. Kf3 {[%emt 0:01:54]} h5 {[%emt 0:00:33]} 23. Re2 {[%emt 0:02:03]} Nd7 {[%emt 0:03:29]} 24. Ke4 {[%emt 0:03:51]} Nc5+ {[%emt 0:01:16]} 25. Kf3 {[%emt 0:02:13]} Ne6 {[%emt 0:01:04]} 26. g3 {[%emt 0:03:39]} Rd8 {[%emt 0:00:12]} 27. h4 {[%emt 0:00:44]} Bh6 {[%emt 0:00:14]} 28. Ke4 {[%emt 0:01:55]} Kf8 {[%emt 0:02:52]} 29. Ba3+ {[%emt 0:00:39]} Ke8 {[%emt 0:00:01]} 30. Bd6 {[%emt 0:00:45]} Rc8 {[%emt 0:05:09]} 31. Kd5 {[%emt 0:00:38]} Kd7 {[%emt 0:01:31]} 32. Rf2 {[%emt 0:00:39]} Ke8 {[%emt 0:03:47]} 33. Rf3 {[%emt 0:00:34]} g6 {[%emt 0:02:58]} 34. Bb4 {[%emt 0:00:20]} Rd8+ {[%emt 0:01:00]} 35. Bd6 {[%emt 0:00:23]} Bf8 {[%emt 0:04:31]} 36. c5 {[%emt 0:00:39]} Rc8 {[%emt 0:01:32]} 37. b4 {[%emt 0:00:32]} a6 {[%emt 0:04:39]} 38. a4 {[%emt 0:00:39]} a5 {[%emt 0:00:34]} 39. bxa5 {[%emt 0:00:43]} Bxd6 {[%emt 0:00:20]} 40. cxd6 {[%emt 0:00:50]} Rc5+ {[%emt 0:00:13]} 41. Ke4 {[%emt 0:00:22]} Rc4+ {[%emt 0:00:41]} 42. Kd3 {[%emt 0:00:18]} Rxa4 {[%emt 0:00:07]} 43. d7+ {[%emt 0:00:47]} Kxd7 {[%emt 0:01:34]} 44. Rxf7+ {[%emt 0:00:02]} Kc6 {[%emt 0:01:00]} 45. Rf6 {[%emt 0:00:09]} Kd5 {[%emt 0:00:28]} 46. Rxg6 {[%emt 0:00:27]} Rg4 {[%emt 0:02:54]} 47. Rh6 {[%emt 0:00:25]} Rxg3+ {[%emt 0:00:05]} 48. Kd2 {[%emt 0:00:24]} Nf4 {[%emt 0:02:27]} 49. e6 {[%emt 0:00:26]} Rd3+ {[%emt 0:00:26]} 50. Kc2 {[%emt 0:00:14]} Re3 {[%emt 0:00:09]} 51. Rh7 {[%emt 0:00:19]} Rxe6 {[%emt 0:00:45]} 52. Rxb7 {[%emt 0:00:02]} Ke4 {[%emt 0:01:57]} 53. Rb6 {[%emt 0:00:53]} Re5 {[%emt 0:00:09]} 54. a6 {[%emt 0:01:05]} Ra5 {[%emt 0:00:01]} 55. Kb3 {[%emt 0:00:53]} Nd3 {[%emt 0:01:21]} 56. Kc4 {[%emt 0:00:37]} Rc5+ {[%emt 0:00:39]} 57. Kb3 {[%emt 0:00:10]} Kd5 {[%emt 0:01:01]} 58. Rg6 {[%emt 0:01:28]} Kd4 {[%emt 0:01:42]} 59. Rg5 {[%emt 0:00:40]} Rc3+ {[%emt 0:01:17]} 60. Ka4 {[%emt 0:01:00]} Kc4 {[%emt 0:01:29]} 61. Rxh5 {[%emt 0:01:16]} Nc5+ {[%emt 0:03:14]} 62. Rxc5+ {[%emt 0:01:07]} Kxc5 {[%emt 0:00:02]} 63. a7 {[%emt 0:00:01]} Rc1 {[%emt 0:00:30]} 64. Kb3 {[%emt 0:00:31]} Ra1 {[%emt 0:00:08]} 0-1

[Event "FRA-ch Youth U18W 2019"]
[Site "Hyeres"]
[Date "2019.04.15"]
[Round "2.1"]
[White "Andre, Victoria"]
[Black "Rollot, Florence"]
[Result "0-1"]
[ECO "B01"]
[WhiteElo "1691"]
[BlackElo "1975"]
[Annotator "NA RC"]
[PlyCount "98"]
[EventDate "2019.04.14"]
[EventType "swiss"]
[EventCountry "FRA"]
[SourceTitle "playchess.com"]
[Source "ChessBase"]
[SourceQuality "1"]
[TimeControl "5400+30"]

{[%evp 8,98,-21,32767,32767,32767,32767,32767,-27,0,32767,32767,-40,-45,-9,-22,-2,-39,0,-32,-33,-44,-35,-37,-8,-72,0,0,37,32767,-146,-150,32767,-164,32767,-170,-136,-155,-99,32767,32767,-53,32767,-295,-306,-334,32767,32767,-492,-477,-464,-452,-494,32767,32767,-487,32767,32767,32767,32767,32767,-610,32767,-762,-862,-787,-1241,-1155,32767,-1093,-1337,-1350,-1070,-1000,-736,-706,-807,32767,-876,-903,32767,-906,-1231,-1177,32767,-1156,-1935,-6836,-29987,-29973,-29988,-29988,-29989]} 1. e4 {[%emt 0:00:00]} d5 {[%emt 0:00:00]} 2. exd5 {[%emt 0:00:00]} Qxd5 {[%emt 0:00:00]} 3. Nc3 {[%emt 0:00:00]} Qa5 {[%emt 0:00:00]} 4. b4 {[%emt 0:01:03]} Qxb4 {[%emt 0:00:06]} 5. Rb1 {[%emt 0:00:11]} Qd6 {[%emt 0:00:25]} 6. Nf3 {[%emt 0:00:09]} Nf6 {[%emt 0:01:27] B01: Scandinavian Defence} 7. d4 {[%emt 0:00:19]} (7. Bc4 a6 8. d4 e6 9. O-O Be7 10. Re1 O-O 11. Ne4 Nxe4 12. Rxe4 b5 13. Bd3 Bb7 14. Re3 {0-1 (45) Berg,O (2235)-Klerides,P (2183) Klaksvik 2018}) 7... e6 {[%emt 0:02:07]} 8. Bd3 {[%emt 0:00:59]} Be7 {[%emt 0:01:44]} 9. Ne4 $146 {[%emt 0:06:19]} ({Predecessor:} 9. O-O O-O 10. Re1 c6 11. Rb3 Qc7 12. Qe2 b6 13. Ne5 Bb7 14. Ne4 c5 15. Nxf6+ Bxf6 16. Bxh7+ Kh8 17. Qh5 Rd8 18. Nxf7+ {1-0 (18) Lopez Pereyra,A (2102)-Diaz Reyes,K (1732) Santa Cruz de Tenerife 2018}) 9... Nxe4 {[%emt 0:08:10]} 10. Bxe4 {[%emt 0:00:05]} c6 {[%emt 0:01:03]} 11. O-O {[%emt 0:09:14]} Nd7 {[%emt 0:02:54]} 12. Rb3 {[%emt 0:06:54]} Qc7 {[%emt 0:04:43]} 13. Bb2 {[%emt 0:22:38]} Nf6 {[%emt 0:04:11]} 14. Bd3 {[%emt 0:03:03]} O-O {[%emt 0:03:31]} 15. Ne5 {[%emt 0:07:52]} Rd8 {[%emt 0:12:43]} 16. f4 {[%emt 0:14:23]} (16. Qe2 $11) 16... b6 {[%emt 0:06:36]} (16... c5 $17 17. c3 g6) 17. Qe2 {[%emt 0:06:24]} (17. g4 $1 $14) 17... Bd6 {[%emt 0:07:58]} (17... b5 $15) 18. c3 {[%emt 0:04:35]} c5 {[%emt 0:04:53]} 19. Ba1 {[%emt 0:08:41]} Bb7 {[%emt 0:02:38]} 20. Rbb1 {[%emt 0:01:02]} Rac8 {[%emt 0:05:05]} 21. Bb2 {[%emt 0:02:28]} Bd5 {[%emt 0:02:24]} 22. Bc1 {[%emt 0:02:28]} c4 {[%emt 0:01:11]} (22... g6 $19 23. g3 Qe7) 23. Bc2 {[%emt 0:00:11]} Qb7 {[%emt 0:00:57]} 24. f5 {[%emt 0:00:31]} Ne4 {[%emt 0:05:38]} 25. Bxe4 $4 {[%emt 0:01:47]} (25. f6 $11 {and White has nothing to worry.}) 25... Bxe4 {[%emt 0:00:09]} 26. Rb2 {[%emt 0:00:11]} Bxe5 {[%emt 0:04:38]} 27. Re1 {[%emt 0:01:04] [#]} Bxd4+ $1 {[%emt 0:01:34]} 28. cxd4 {[%emt 0:00:02]} Bxf5 {[%emt 0:00:36]} 29. Be3 {[%emt 0:00:33]} c3 {[%emt 0:00:55]} 30. Rb4 {[%emt 0:00:21]} c2 {[%emt 0:00:32]} 31. Rc1 {[%emt 0:01:04]} Qe4 {[%emt 0:01:25]} 32. Qd2 {[%emt 0:00:38]} Qd5 {[%emt 0:04:09]} 33. a3 {[%emt 0:00:31]} Qc6 {[%emt 0:01:23]} 34. Rb3 {[%emt 0:00:37]} e5 {[%emt 0:00:47]} 35. Rb4 {[%emt 0:00:31]} a5 {[%emt 0:00:33]} 36. Rb2 {[%emt 0:00:34]} exd4 {[%emt 0:00:16]} 37. Bf2 {[%emt 0:00:08]} Be4 {[%emt 0:02:08]} 38. Bg3 {[%emt 0:00:34]} d3 {[%emt 0:00:24]} 39. Bf4 {[%emt 0:00:16]} Bg6 {[%emt 0:00:54]} 40. Be3 {[%emt 0:00:09]} Qc3 {[%emt 0:01:15]} 41. Qxc3 {[%emt 0:00:29]} Rxc3 {[%emt 0:00:04]} 42. Rxb6 {[%emt 0:00:18]} Rxa3 {[%emt 0:00:38]} 43. Bd2 {[%emt 0:00:23]} Re8 {[%emt 0:00:51]} 44. Kf1 {[%emt 0:00:37]} h6 {[%emt 0:00:15]} 45. Rd6 {[%emt 0:01:15]} a4 {[%emt 0:00:25]} 46. Rd4 {[%emt 0:00:46]} Rb8 {[%emt 0:08:45]} 47. Rb4 {[%emt 0:00:12]} Rxb4 {[%emt 0:00:00]} 48. Bxb4 {[%emt 0:00:01]} Rb3 {[%emt 0:00:00]} 49. Bd2 {[%emt 0:00:38]} Rb1 {[%emt 0:00:00]} 0-1

[Event "FRA-ch Youth U18W 2019"]
[Site "Hyeres"]
[Date "2019.04.15"]
[Round "2.2"]
[White "Lomandong, Noela-Joyce"]
[Black "Hebert, Floriane"]
[Result "1-0"]
[ECO "A01"]
[WhiteElo "1942"]
[BlackElo "1694"]
[Annotator "NA RC"]
[PlyCount "123"]
[EventDate "2019.04.14"]
[EventType "swiss"]
[EventCountry "FRA"]
[SourceTitle "playchess.com"]
[Source "ChessBase"]
[SourceQuality "1"]
[TimeControl "5400+30"]

{[%evp 8,123,22,26,32767,32767,32767,18,35,30,35,0,8,0,1,16,10,9,2,-29,17,18,26,3,55,52,120,106,134,120,125,108,119,126,120,121,149,114,108,69,81,87,84,91,108,111,119,114,140,102,32767,32767,32767,32767,32767,128,122,32767,172,100,32767,32767,32767,32767,218,227,295,230,32767,218,32767,225,225,231,32767,233,221,220,233,32767,234,221,231,222,226,235,220,211,235,220,245,231,218,233,215,229,220,229,327,370,318,363,312,373,404,380,375,330,616,588,652,638,929,898,875,979,1186,1016]} 1. b3 {[%emt 0:00:00]} d5 {[%emt 0:00:53]} 2. Bb2 {[%emt 0:00:00]} Nc6 {[%emt 0:00:21]} 3. e3 {[%emt 0:00:00]} Nf6 {[%emt 0:00:55]} 4. d4 {[%emt 0:03:43]} (4. Nf3 Bg4 5. Bb5 Qd6 6. h3 Bxf3 7. Qxf3 O-O-O 8. O-O e6 9. d4 a6 10. Bxc6 Qxc6 11. Rc1 Ne4 12. c4 {½-½ (12) Malaniuk,V (2590)-Tukmakov,V (2605) Donetsk 1998}) 4... Bf5 {[%emt 0:02:25]} 5. a3 {[%emt 0:01:12]} a6 {[%emt 0:01:31]} 6. Nd2 {[%emt 0:02:42] A01: Nimzowitsch-Larsen Opening} e6 {[%emt 0:02:11]} 7. Ngf3 $146 {[%emt 0:01:13]} ({Predecessor:} 7. Rc1 Be7 8. c4 b6 9. Ne2 Bd3 10. Nf4 Bxf1 11. Nxf1 {0-1 (26) Zwaneveld,A (1077)-Arango Marin,S (776) LSS email 2013}) 7... h6 {[%emt 0:01:46]} 8. Be2 {[%emt 0:00:31]} Bd6 {[%emt 0:04:12]} 9. b4 {[%emt 0:08:07]} b5 {[%emt 0:02:30]} 10. Ne5 {[%emt 0:04:23]} Bxe5 {[%emt 0:06:19]} 11. dxe5 {[%emt 0:00:07]} Nd7 {[%emt 0:01:34]} 12. f4 {[%emt 0:01:59]} Nb6 {[%emt 0:02:04]} 13. Nb3 {[%emt 0:05:20]} Na4 {[%emt 0:04:20]} (13... Nc4 $15 14. Bxc4 bxc4) 14. Rb1 {[%emt 0:02:11]} Nxb2 {[%emt 0:02:22]} 15. Rxb2 {[%emt 0:00:01]} Qe7 {[%emt 0:02:58]} 16. Bd3 {[%emt 0:07:15]} Bxd3 {[%emt 0:04:52]} (16... Qh4+ $14 17. g3 Qh3) 17. cxd3 {[%emt 0:01:31]} O-O {[%emt 0:01:37]} 18. Qc1 {[%emt 0:02:11]} Nb8 {[%emt 0:05:52]} 19. Rc2 {[%emt 0:01:03]} Rc8 {[%emt 0:05:03]} 20. Na5 {[%emt 0:01:59]} Ra7 {[%emt 0:03:29]} 21. O-O {[%emt 0:03:11]} Qe8 {[%emt 0:05:16]} 22. Rf3 {[%emt 0:05:12]} c6 {[%emt 0:03:51]} 23. Rg3 {[%emt 0:00:54]} ({White should try} 23. Rc5 $16) 23... Kh8 {[%emt 0:03:18]} 24. Rh3 {[%emt 0:01:46]} Rac7 {[%emt 0:03:52]} 25. g4 {[%emt 0:13:25]} Qf8 {[%emt 0:03:27]} 26. d4 {[%emt 0:00:52]} f6 {[%emt 0:02:11]} 27. Nb3 {[%emt 0:12:00]} Nd7 {[%emt 0:06:58]} 28. Rg2 {[%emt 0:06:14]} Kh7 {[%emt 0:06:01]} 29. Qc2+ {[%emt 0:01:44]} f5 {[%emt 0:00:34]} 30. gxf5 {[%emt 0:00:16]} Qxf5 {[%emt 0:00:43]} 31. Qxf5+ {[%emt 0:00:05]} exf5 {[%emt 0:00:11]} 32. Rhg3 {[%emt 0:00:31]} Nf8 {[%emt 0:00:47]} 33. Nc5 {[%emt 0:05:21]} ({Better is} 33. h4 $18) 33... Ra8 {[%emt 0:00:26]} 34. a4 {[%emt 0:03:35]} Raa7 {[%emt 0:02:40]} 35. a5 {[%emt 0:02:22]} Re7 {[%emt 0:01:02]} 36. h3 {[%emt 0:02:23]} Re8 {[%emt 0:06:02]} 37. Kh2 {[%emt 0:00:20]} Ree7 {[%emt 0:00:36]} 38. Rg1 {[%emt 0:00:07]} Kh8 {[%emt 0:00:49]} 39. R3g2 {[%emt 0:00:13]} Kh7 {[%emt 0:00:41]} 40. Rc1 {[%emt 0:01:04]} Rec7 {[%emt 0:01:56]} 41. Kg3 {[%emt 0:02:23]} Ra8 {[%emt 0:01:01]} 42. Kf3 {[%emt 0:00:01]} Kg8 {[%emt 0:00:27]} 43. Rcg1 {[%emt 0:00:28]} Kh7 {[%emt 0:00:21]} 44. Nd3 {[%emt 0:01:13]} Re8 {[%emt 0:00:51]} 45. Rc1 {[%emt 0:00:28]} Ra8 {[%emt 0:00:35]} 46. Rgc2 {[%emt 0:00:39]} Rac8 {[%emt 0:00:09]} 47. Nc5 {[%emt 0:00:08]} Ra8 {[%emt 0:00:44]} 48. Rc3 {[%emt 0:00:46]} Kg8 {[%emt 0:00:16]} 49. R1c2 {[%emt 0:00:27]} Kf7 {[%emt 0:00:33]} 50. Rg2 {[%emt 0:00:42]} Kg8 {[%emt 0:00:43]} 51. Rc1 {[%emt 0:00:29]} Kh7 {[%emt 0:00:33]} 52. h4 {[%emt 0:00:18]} Kg8 {[%emt 0:00:10]} (52... h5 $142 53. Rg3 g6) 53. h5 {[%emt 0:00:03]} Kh7 {[%emt 0:00:09]} 54. Nd3 {[%emt 0:00:45]} Rac8 {[%emt 0:00:40]} 55. Ne1 {[%emt 0:00:57]} Re8 {[%emt 0:00:18]} 56. Rgc2 {[%emt 0:00:22]} Rec8 {[%emt 0:00:51]} 57. Ng2 {[%emt 0:00:07]} g6 $2 {[%emt 0:00:24]} (57... g5 58. hxg6+ Nxg6) 58. Nh4 {[%emt 0:00:19]} gxh5 {[%emt 0:00:55]} 59. Nxf5 {[%emt 0:00:09]} Kg6 {[%emt 0:00:32]} 60. Nd6 {[%emt 0:00:08]} Ra8 {[%emt 0:00:36]} 61. f5+ {[%emt 0:00:12]} Kg7 {[%emt 0:00:24]} 62. Rxc6 $18 {[%emt 0:00:13]} 1-0